bitfinex-derivatives/quotes_ETHF0:USTF0_20251024
["timestamp","ask_amount","ask_price","bid_price","bid_amount"]
[1761269092464,0.5693,3867.9,3867.8,0.99897869]
[1761269092664,0.8042,3867.9,3867.8,0.20930705]
[1761269092868,0.8042,3867.9,3867.8,0.38940705]
[1761269096572,0.3488,3867.9,3867.8,0.38940705]
[1761269096773,0.5693,3868.2,3868.1,0.3602]
[1761269096986,0.8042,3868.2,3868.1,1.61510164]
[1761269097176,0.8042,3868.2,3868.1,0.82543]
[1761269098478,0.8042,3868.2,3868.1,0.64533]
[1761269098872,0.8042,3868.2,3868.1,0.82543]
[1761269099069,0.8042,3868.2,3868.1,0.64533]
[1761269099277,0.8042,3868.2,3868.1,0.46523]
[1761269099581,0.7738,3867.9,3867.8,0.49446705]
[1761269099783,1.36684216,3867.9,3867.8,0.02920705]
[1761269103592,0.93054216,3867.9,3867.8,0.99937869]
[1761269103785,0.93054216,3867.9,3867.8,1.17987869]
[1761269104286,1.36684216,3867.9,3867.8,0.81907869]
[1761269105687,1.36684216,3867.9,3867.8,0.20950705]
[1761269106779,0.93054216,3867.9,3867.8,0.38980705]
[1761269106980,0.93054216,3867.9,3867.8,0.57030705]
[1761269107889,1.36684216,3867.9,3867.8,0.20950705]
[1761269108092,1.36684216,3867.9,3867.8,0.38980705]
[1761269108581,1.36684216,3867.9,3867.8,0.57030705]
[1761269108978,0.59304216,3867.9,3867.8,0.57030705]
[1761269109287,0.4784,3868.0,3867.9,1.00635]
[1761269109489,0.4784,3868.0,3867.9,1.61592164]
[1761269111692,0.696,3868.0,3867.9,1.61592164]
[1761269112493,0.696,3868.0,3867.9,1.43542164]
[1761269112994,0.3375,3868.0,3867.9,2.22549328]
[1761269113194,0.3375,3868.0,3867.9,1.61592164]
[1761269113585,0.4784,3868.0,3867.9,1.61592164]
[1761269114392,0.9147,3868.0,3867.9,1.43542164]
[1761269114583,0.9147,3868.0,3867.9,0.46525]
[1761269114981,1.50828423,3868.0,3867.9,0.46525]
[1761269116097,0.9147,3868.0,3867.9,0.64555]
[1761269116994,0.9147,3868.0,3867.9,0.82585]
[1761269118297,1.50932122,3868.0,3867.9,0.46525]
[1761269121701,1.50932122,3868.0,3867.9,0.64555]
[1761269122601,1.50932122,3868.0,3867.9,0.46525]
[1761269122899,1.50932122,3868.0,3867.9,1.07482164]
[1761269123101,1.50932122,3868.0,3867.9,1.43542164]
[1761269123699,0.696,3868.0,3867.9,1.61592164]
[1761269123900,0.696,3868.0,3867.9,1.43542164]
[1761269124105,0.696,3868.0,3867.9,1.61592164]
[1761269124702,0.696,3868.0,3867.9,1.59421368]
[1761269125207,0.696,3868.0,3867.9,1.77471368]
[1761269127708,0.696,3868.0,3867.9,1.59421368]
[1761269128014,0.9195,3868.0,3867.9,1.59421368]
[1761269128823,0.9195,3868.0,3867.9,1.77461368]
[1761269129120,0.9195,3868.0,3867.9,1.59421368]
[1761269131425,0.9195,3868.0,3867.9,1.41391368]
[1761269131730,1.51446157,3868.0,3867.9,0.46525]
[1761269131923,1.51446157,3868.0,3867.9,0.64585]
[1761269132131,1.51446157,3868.0,3867.9,1.41421368]
[1761269132529,1.51446157,3868.0,3867.9,1.59481368]
[1761269136523,1.51446157,3868.0,3867.9,1.77541368]
[1761269136524,0.93246157,3868.0,3867.9,1.77541368]
[1761269136731,0.3375,3868.0,3867.9,1.77541368]
[1761269137831,0.48,3868.0,3867.9,1.77541368]
[1761269138430,0.7148,3868.0,3867.9,1.77541368]
[1761269138829,0.3375,3868.0,3867.9,1.77541368]
[1761269139025,0.3375,3868.0,3867.9,3.15147563]
[1761269139833,0.48,3868.0,3867.9,1.77541368]
[1761269140137,0.3375,3868.0,3867.9,1.77541368]
[1761269140835,0.48,3868.0,3867.9,1.77541368]
[1761269141136,0.7148,3868.0,3867.9,1.77541368]
[1761269142325,0.92818535,3868.8,3867.9,1.77541368]
[1761269142326,1.16298535,3868.8,3868.7,0.46516]
[1761269142530,1.16298535,3868.8,3868.7,1.59472368]
[1761269142531,1.07276809,3868.8,3868.7,1.59472368]
[1761269142731,0.82995996,3868.8,3868.7,1.59472368]
[1761269142930,1.18375996,3868.8,3868.7,1.59472368]
[1761269143137,1.41545996,3868.8,3868.7,1.59472368]
[1761269144028,1.41545996,3868.8,3868.6,9.136]
[1761269144234,0.8203,3868.3,3868.2,0.46522]
[1761269144436,1.41545996,3868.3,3868.2,9.60122]
[1761269150033,1.41545996,3868.3,3868.2,9.78182]
[1761269151632,0.59515996,3868.3,3868.2,10.14302]
[1761269151834,0.1425,3868.5,3868.2,10.14302]
[1761269151835,0.4963,3868.5,3868.4,0.6458]
[1761269152036,0.7311,3868.5,3868.4,1.77536368]
[1761269152235,1.32578208,3868.5,3868.4,1.77536368]
[1761269154247,1.32578208,3868.5,3868.4,1.59476368]
[1761269154949,1.55748208,3868.5,3868.4,0.4652]
[1761269155340,1.55748208,3868.5,3868.4,0.6458]
[1761269155942,1.55748208,3868.5,3868.4,9.7818]
[1761269156248,1.55748208,3868.5,3868.4,0.6458]
[1761269156450,1.55748208,3868.5,3868.4,9.6002]
[1761269158951,1.55748208,3868.5,3868.4,9.135]
[1761269159150,1.55748208,3868.5,3868.0,0.46524]
[1761269159151,0.7857,3868.1,3868.0,0.46524]
[1761269159448,0.7857,3867.9,3867.8,0.02920705]
[1761269159644,1.38037278,3867.9,3867.8,0.02920705]
[1761269160052,0.9212,3867.0,3866.9,0.46536]
[1761269160246,0.9212,3867.0,3866.9,9.14336]
[1761269160642,1.51604521,3867.0,3866.9,9.14336]
[1761269161048,1.51604521,3867.0,3866.9,9.14551985]
[1761269161244,0.9212,3867.0,3866.9,0.46751985]
[1761269161445,0.9212,3867.0,3866.9,0.00215985]
[1761269161645,1.51555183,3867.0,3866.9,0.00215985]
[1761269162143,1.51518464,3867.0,3866.9,0.00215985]
[1761269162338,1.18058464,3867.0,3866.2,0.1804]
[1761269162544,0.7857,3866.3,3866.2,0.82625]
[1761269162745,0.7857,3866.3,3866.2,7.71961368]
[1761269162944,0.4701,3866.5,3866.4,1.00664]
[1761269163145,0.6974,3866.5,3866.4,1.00664]
[1761269163343,0.6974,3866.5,3866.4,0.8286568]
[1761269163544,0.9212,3866.5,3866.4,0.8286568]
[1761269163746,0.3346,3866.8,3866.7,0.3608]
[1761269163947,0.7857,3866.8,3866.7,1.12916368]
[1761269164147,0.7857,3866.8,3866.7,0.94876368]
[1761269164354,0.3346,3866.7,3866.6,0.4654]
[1761269164556,0.9212,3866.5,3866.4,0.1828168]
[1761269164754,0.9212,3866.5,3866.4,0.8286468]
[1761269164955,0.9212,3866.5,3866.4,1.0090468]
[1761269165253,0.6974,3866.5,3866.4,1.0090468]
[1761269166456,0.3628,3867.0,3866.9,0.82617]
[1761269166652,0.5866,3867.0,3866.9,0.82617]
[1761269167156,0.9212,3867.0,3866.9,0.82617]
[1761269168155,0.9212,3867.0,3866.9,0.64577]
[1761269170459,0.9212,3867.0,3866.9,0.82617]
[1761269172248,0.6974,3867.0,3866.9,1.00657]
[1761269172853,0.4701,3867.0,3866.9,1.00657]
[1761269173561,0.6974,3867.0,3866.9,1.00657]
[1761269174163,0.6974,3867.0,3866.9,0.82617]
[1761269174364,0.9212,3867.0,3866.9,0.46537]
[1761269177365,0.9212,3867.0,3866.9,0.64577]
[1761269177561,0.5866,3867.5,3867.4,0.64572]
[1761269177759,0.5866,3867.5,3867.4,0.46532]
[1761269178266,0.9212,3867.5,3867.4,0.46532]
[1761269178851,0.4511,3867.3,3867.0,0.46536]
[1761269179068,0.7857,3867.1,3867.0,0.46536]
[1761269179655,0.7857,3867.1,3867.0,0.64576]
[1761269181559,0.1355,3867.5,3867.4,1.00652]
[1761269181759,0.5866,3867.5,3867.4,1.59448368]
[1761269181954,0.9212,3867.5,3867.4,1.59448368]
[1761269184771,0.9212,3867.5,3867.4,0.82612]
[1761269184973,0.9212,3867.5,3867.4,1.43615766]
[1761269186360,0.6974,3867.5,3867.4,1.61655766]
[1761269187372,0.6974,3867.5,3867.4,1.43615766]
[1761269188669,0.9115,3867.5,3867.4,1.43615766]
[1761269188978,0.9115,3867.5,3867.4,0.46532]
[1761269189275,0.7867,3867.3,3867.2,0.46534]
[1761269189471,0.4472,3866.9,3866.8,0.46539]
[1761269189866,0.4472,3866.9,3866.8,0.64589]
[1761269190071,0.7867,3866.9,3866.8,0.64589]
[1761269190277,1.38390233,3866.9,3866.8,0.64589]
[1761269192269,0.7867,3866.7,3866.6,0.46541]
[1761269192571,0.7867,3866.7,3866.6,1.07544766]
[1761269192773,0.7867,3866.7,3866.6,1.25594766]
[1761269196281,0.3395,3866.7,3866.6,1.61684766]
[1761269196474,0.3699,3867.0,3866.9,1.00678]
[1761269196782,0.96712292,3867.0,3866.9,1.61681766]
[1761269197087,1.30662292,3867.0,3866.9,1.61681766]
[1761269197381,1.30662292,3867.0,3866.9,1.43641766]
[1761269197583,1.52542292,3867.0,3866.9,1.43641766]
[1761269197883,1.52542292,3867.0,3866.9,1.25591766]
[1761269198077,1.52542292,3867.0,3866.9,1.43641766]
[1761269198381,0.9282,3867.0,3866.9,1.43641766]
[1761269198681,0.9282,3867.0,3866.9,1.25591766]
[1761269199071,0.9282,3867.0,3866.9,1.07541766]
[1761269200177,0.9282,3867.0,3866.9,0.46538]
[1761269200383,0.9282,3867.0,3866.9,1.25591766]
[1761269202775,0.9282,3867.0,3866.9,1.43641766]
[1761269203779,0.9282,3867.0,3866.9,1.07541766]
[1761269204081,0.3395,3866.7,3866.6,1.07544766]
[1761269204280,0.7867,3866.7,3866.6,10.21344766]
[1761269204476,0.7867,3866.7,3866.6,10.39394766]
[1761269205483,0.7867,3866.7,3866.6,0.64591]
[1761269205683,0.7867,3866.7,3866.6,10.39394766]
[1761269206193,0.7867,3866.7,3866.6,10.57444766]
[1761269207188,0.9282,3866.5,3866.4,0.6483568]
[1761269207390,0.9282,3866.5,3866.4,9.9668568]
[1761269208079,0.9282,3866.5,3866.4,10.57689446]
[1761269209286,0.9282,3866.5,3866.4,10.39639446]
[1761269209485,0.9282,3866.5,3866.4,0.61245446]
[1761269209788,1.52534595,3866.5,3866.4,0.0024168]
[1761269213380,0.7867,3865.3,3865.2,0.46558]
[1761269213581,1.38350572,3865.3,3865.2,0.46558]
[1761269214082,0.1415,3865.5,3864.3,1.38863073]
[1761269214083,0.1415,3864.5,3864.3,1.38863073]
[1761269214281,0.5887,3865.0,3864.6,1.43668766]
[1761269214282,0.5679,3864.7,3864.6,1.43668766]
[1761269214486,0.56985998,3864.7,3864.6,1.43668766]
[1761269215989,0.56985998,3864.7,3864.6,1.61708766]
[1761269216591,0.56985998,3864.7,3864.6,1.00705]
[1761269216793,0.56985998,3864.7,3864.6,1.61708766]
[1761269217292,0.00195998,3864.7,3864.6,1.61708766]
[1761269217678,0.34145998,3864.7,3864.6,1.61708766]
[1761269218585,0.56985998,3864.7,3864.6,1.61708766]
[1761269218787,0.78865998,3864.7,3864.6,0.82665]
[1761269220496,0.78865998,3864.7,3864.6,1.43668766]
[1761269220794,0.34145998,3864.7,3864.6,1.61728766]
[1761269223801,0.55795998,3864.7,3864.6,1.43668766]
[1761269224501,0.77835998,3864.7,3864.6,1.43668766]
[1761269226300,0.00195998,3864.7,3864.6,1.61728766]
[1761269226695,0.35745998,3864.7,3864.6,1.61728766]
[1761269226895,0.57395998,3864.7,3864.6,1.43668766]
[1761269227197,0.79435998,3864.7,3864.6,1.43668766]
[1761269228592,0.1332,3864.5,3864.3,0.00290401]
[1761269228889,0.572,3863.2,3863.1,1.42806766]
[1761269229094,0.572,3863.2,3863.1,0.99413]
[1761269229095,0.3555,3863.2,3863.1,0.99413]
[1761269229705,0.3555,3863.2,3863.1,0.9964974]
[1761269230609,0.572,3863.2,3863.1,0.9964974]
[1761269230802,0.1332,3864.0,3863.7,0.46575]
[1761269231002,0.5701,3864.0,3863.9,0.78613766]
[1761269231409,0.9256,3864.0,3863.9,0.78613766]
[1761269231610,0.9256,3864.0,3863.9,0.1761]
[1761269232109,0.7924,3863.8,3863.7,0.64185]
[1761269232407,0.7924,3863.8,3863.7,0.81795]
[1761269232598,0.1332,3864.0,3863.9,0.81794]
[1761269232805,0.1332,3864.0,3863.9,1.60407766]
[1761269233201,0.7052,3864.0,3863.9,1.42797766]
[1761269233408,0.7052,3864.0,3863.9,1.60407766]
[1761269234207,0.7052,3864.0,3863.9,0.99404]
[1761269234401,0.9256,3864.0,3863.9,0.96223766]
[1761269238009,0.3555,3864.0,3863.9,1.13833766]
[1761269238506,0.7052,3864.0,3863.9,0.96223766]
[1761269238908,0.9256,3864.0,3863.9,0.96223766]
[1761269239105,0.7052,3864.0,3863.9,1.13833766]
[1761269239615,0.7924,3864.4,3864.3,0.64178]
[1761269239812,0.7924,3864.4,3864.3,1.42791766]
[1761269240112,1.38830793,3864.4,3864.3,1.42791766]
[1761269243403,0.59590793,3864.4,3864.3,1.60401766]
[1761269243706,0.35745998,3864.7,3864.6,0.99395]
[1761269243911,0.9544363,3864.7,3864.6,10.75298766]
[1761269244813,0.9544363,3864.7,3864.6,10.14295]
[1761269245218,1.1709363,3864.7,3864.6,9.96685]
[1761269245715,1.1709363,3864.7,3864.6,10.14295]
[1761269247411,0.2165,3863.7,3863.6,2.03050073]
[1761269247605,0.572,3863.7,3863.6,9.96797]
[1761269247807,0.3555,3863.7,3863.6,10.14407]
[1761269248811,0.7924,3863.7,3863.6,9.5022]
[1761269249213,0.7924,3863.7,3863.6,9.3261]
[1761269249416,0.7924,3863.7,3863.6,9.15]
[1761269250409,0.7924,3863.7,3863.6,9.3262]
[1761269251110,0.1327,3863.5,3863.1,0.1785674]
[1761269251316,0.1327,3863.5,3863.1,0.8205974]
[1761269251317,0.5621,3863.2,3863.1,0.8205974]
[1761269251505,0.5621,3863.2,3863.1,8.6725974]
[1761269253317,0.7816,3863.2,3863.1,9.9755974]
[1761269253624,0.7816,3863.2,3863.1,9.5097674]
[1761269255212,0.7816,3863.2,3863.1,9.5098674]
[1761269255614,0.7816,3863.2,3863.1,10.27955681]
[1761269255815,0.5621,3863.2,3863.1,10.45585681]
[1761269256125,0.3224,3863.4,3863.3,0.5289]
[1761269256321,0.3224,3863.7,3863.6,0.99467]
[1761269256521,0.3224,3863.7,3863.6,10.14667]
[1761269257021,0.5542,3863.7,3863.6,10.14667]
[1761269258616,0.3224,3863.7,3863.6,10.14667]
[1761269259226,0.5542,3863.7,3863.6,9.97037]
[1761269260731,0.7737,3863.7,3863.6,9.97037]
[1761269262729,0.7737,3863.7,3863.6,10.14667]
[1761269263328,0.7737,3863.7,3863.6,9.97037]
[1761269263649,0.7737,3863.7,3863.6,9.5046]
[1761269263933,1.37069027,3863.7,3863.6,9.5046]
[1761269264232,1.37069027,3863.7,3863.6,9.3283]
[1761269266033,1.37069027,3863.7,3863.6,9.5046]
[1761269266431,0.7737,3863.7,3863.6,9.5046]
[1761269267133,0.7737,3863.7,3863.6,0.3526]
[1761269267434,0.7737,3863.7,3863.6,9.4996]
[1761269269737,0.7737,3863.7,3863.1,0.1786674]
[1761269269738,0.1395,3863.5,3863.1,0.1786674]
[1761269269937,0.3224,3863.2,3863.1,0.9970974]
[1761269270151,0.1395,3863.5,3863.4,0.8184]
[1761269270152,0.3713,3863.5,3863.4,0.8184]
[1761269270536,1.29006178,3863.5,3863.4,0.8184]
[1761269270734,1.50956178,3863.5,3863.4,0.8184]
[1761269271243,1.50956178,3863.5,3863.4,0.9947]
[1761269271244,0.4619,3863.5,3863.4,0.9947]
[1761269272335,0.9132,3863.5,3863.4,0.8184]
[1761269272737,0.9132,3863.5,3863.4,0.9947]
[1761269272941,0.9132,3863.5,3863.4,0.8184]
[1761269273329,0.9132,3863.5,3863.4,9.9644]
[1761269274337,1.50987575,3863.5,3863.4,9.9644]
[1761269276533,1.50987575,3863.5,3863.4,0.3526]
[1761269276736,0.7737,3863.2,3863.1,0.6444974]
[1761269277042,0.7737,3863.2,3863.1,9.7904974]
[1761269277344,0.7737,3863.2,3863.1,0.4681974]
[1761269277536,0.7737,3863.2,3863.1,9.6141974]
[1761269277736,0.7737,3863.2,3863.1,9.7904974]
[1761269278038,1.37147289,3863.2,3863.1,9.7904974]
[1761269278239,1.37147289,3863.2,3862.8,0.02588796]
[1761269278240,0.1395,3863.0,3862.8,0.02588796]
[1761269278433,0.6937,3861.5,3861.4,0.3526]
[1761269278738,1.51069695,3861.5,3861.4,0.3526]
[1761269279337,0.32464919,3861.5,3861.4,1.30155245]
[1761269279634,0.54404919,3861.5,3861.4,1.30155245]
[1761269279835,0.68064919,3861.5,3861.4,1.12545245]
[1761269280536,0.3464,3862.2,3862.1,0.46595]
[1761269280842,1.17479309,3862.2,3862.1,0.81815]
[1761269281232,0.5658,3862.2,3862.1,0.81815]
[1761269281641,0.56806114,3862.2,3862.1,0.81815]
[1761269282238,0.56806114,3862.2,3862.1,0.46595]
[1761269282239,0.80306114,3862.2,3862.1,0.46595]
[1761269282641,0.34866114,3862.2,3862.1,0.99425]
[1761269282841,0.56806114,3862.2,3862.1,0.81815]
[1761269284243,0.34866114,3862.2,3862.1,0.99425]
[1761269285843,0.56806114,3862.2,3862.1,0.81815]
[1761269286246,0.00226114,3862.2,3862.1,1.76393941]
[1761269286444,0.3464,3862.9,3862.8,0.46587]
[1761269286646,0.1366,3863.5,3862.8,0.46587]
[1761269286647,0.3464,3863.2,3863.1,0.3522]
[1761269286843,0.3464,3863.2,3863.1,0.5283]
[1761269287039,0.5658,3863.2,3863.1,0.3522]
[1761269287544,0.34837161,3863.2,3863.1,0.99413]
[1761269287744,0.00197161,3863.2,3863.1,1.76381941]
[1761269289245,0.00197161,3863.2,3863.1,1.96955788]
[1761269289851,0.00197161,3863.2,3863.1,0.99413]
[1761269290543,0.34837161,3863.2,3863.1,0.99413]
[1761269290846,0.34837161,3863.2,3863.1,1.19858751]
[1761269291151,0.80277161,3863.2,3863.1,1.02248751]
[1761269291351,0.00197161,3863.2,3863.1,1.19858751]
[1761269293150,0.00197161,3863.2,3863.1,5.04658751]
[1761269293743,0.34837161,3863.2,3863.1,5.04658751]
[1761269294452,0.00197161,3863.2,3863.1,5.04658751]
[1761269297154,0.34837161,3863.2,3863.1,5.81627692]
[1761269298154,0.34837161,3863.2,3863.1,5.04658751]
[1761269298155,0.56777161,3863.2,3863.1,5.04658751]
[1761269299655,0.34837161,3863.2,3863.1,5.04658751]
[1761269300250,0.00197161,3863.2,3863.1,5.04658751]
[1761269301048,0.00197161,3863.2,3863.1,14.22658751]
[1761269301248,0.483,3864.0,3863.9,0.99404]
[1761269301451,0.483,3864.0,3863.9,10.94172941]
[1761269301750,0.7024,3864.0,3863.9,10.94172941]
[1761269301954,0.9374,3864.0,3863.9,10.76562941]
[1761269302356,0.93927614,3864.0,3863.9,10.76562941]
[1761269306660,0.93927614,3864.0,3863.9,10.60707071]
[1761269308258,0.93927614,3864.0,3863.9,0.1761]
[1761269308465,0.788,3863.8,3863.7,0.46575]
[1761269308762,0.788,3863.8,3863.7,5.95275]
[1761269308968,0.788,3863.8,3863.7,6.12795]
[1761269314069,1.39913071,3863.8,3863.5,0.46578]
[1761269314266,0.35,3863.7,3863.6,9.167]
[1761269314483,0.812,3863.7,3863.6,9.167]
[1761269314960,0.812,3863.7,3863.6,9.3429]
[1761269315367,1.42296951,3863.7,3863.6,9.3429]
[1761269315670,0.812,3863.4,3863.3,3.848]
[1761269315866,0.35,3863.7,3863.3,4.1998]
[1761269316068,0.35,3863.7,3863.6,0.99347]
[1761269316280,1.19027752,3863.7,3863.6,0.99347]
[1761269316478,1.19027752,3863.7,3863.6,0.81757]
[1761269316684,1.42287752,3863.7,3863.6,0.81757]
[1761269320580,1.19027752,3863.7,3863.6,0.99347]
[1761269320886,1.42287752,3863.7,3863.6,0.81757]
[1761269328388,1.42381466,3863.7,3863.6,0.81757]
[1761269330792,1.42381466,3863.7,3863.6,0.64167]
[1761269331192,1.42381466,3863.7,3863.6,0.81757]
[1761269333195,1.42381466,3863.7,3863.6,0.64167]
[1761269336299,1.42381466,3863.7,3863.6,0.1759]
[1761269337791,0.1317,3863.5,3862.3,2.43438295]
[1761269337992,0.5794,3862.6,3862.5,9.9737]
[1761269338199,0.5794,3862.6,3862.5,10.18215857]
[1761269338500,0.812,3862.6,3862.5,0.1759]
[1761269338698,0.9437,3862.5,3862.4,0.64181]
[1761269338899,0.9437,3862.5,3862.4,9.82681]
[1761269339093,5.9437,3862.5,3861.9,1.82325224]
[1761269339295,0.9193,3861.5,3861.4,9.38726304]
[1761269339495,0.9193,3861.5,3860.8,4.99368852]
[1761269339496,0.5828,3861.5,3860.8,4.99368852]
[1761269339699,0.5828,3861.5,3860.7,0.3223]
[1761269339700,0.61113071,3861.0,3860.7,0.3223]
[1761269339903,0.8562121,3860.9,3860.8,0.7766]
[1761269340096,0.61150436,3860.9,3860.8,0.7766]
[1761269340598,0.61443411,3860.9,3860.8,0.77966303]
[1761269340800,1.22556482,3860.9,3860.8,0.32536303]
[1761269342206,0.61443411,3860.9,3860.8,0.77966303]
[1761269342396,0.00292975,3860.9,3860.8,0.77966303]
[1761269342797,0.00292975,3860.9,3860.8,10.00166303]
[1761269345503,0.00292975,3860.9,3860.8,10.61279374]
[1761269346195,0.00292975,3860.9,3860.8,10.00166303]
[1761269346396,0.00292975,3860.9,3860.8,0.77966303]
[1761269349011,0.61113071,3861.8,3861.6,0.3223]
[1761269349205,0.61113071,3861.8,3861.7,0.3223]
[1761269349809,0.61113071,3861.8,3861.7,0.5504]
[1761269350014,0.61356414,3861.8,3861.7,0.5504]
[1761269351212,0.61356414,3861.8,3861.7,0.3223]
[1761269353216,0.61356414,3861.8,3861.7,0.5504]
[1761269354214,0.91038793,3861.8,3861.7,0.5504]
[1761269355316,1.54776003,3861.8,3861.7,0.5504]
[1761269355911,1.54776003,3861.8,3861.7,0.3223]
[1761269356311,6.54776003,3861.8,3861.1,0.5504]
[1761269356513,0.93425481,3861.7,3861.2,0.3223]
[1761269356711,0.93421845,3861.6,3861.2,0.3223]
[1761269356918,0.93421845,3861.5,3861.2,0.3223]
[1761269357206,0.6373721,3861.4,3861.2,0.3223]
[1761269357418,0.00243343,3861.8,3861.3,0.5504]
[1761269357613,0.96715299,3861.7,3861.6,0.3223]
[1761269357817,1.5782837,3861.7,3861.2,0.3223]
[1761269358009,0.61113071,3861.3,3861.2,0.3223]
[1761269358211,5.90797908,3861.3,3860.9,0.3223]
[1761269358516,0.61113071,3861.0,3860.9,0.3223]
[1761269359020,1.28143268,3861.0,3860.9,0.3223]
[1761269360218,1.28143268,3861.0,3860.8,0.00306303]
[1761269360219,7.1894752,3861.0,3860.8,0.00306303]
[1761269360510,5.96721378,3860.9,3860.8,0.00306303]
[1761269361313,6.89801148,3860.9,3860.8,0.00306303]
[1761269362110,6.22770951,3860.9,3860.8,0.00306303]
[1761269362308,6.22770951,3860.9,3858.8,3.848]
[1761269362309,6.22770951,3860.9,3859.3,0.3223]
[1761269362513,0.61113071,3859.4,3859.3,0.7766]
[1761269363422,7.6,3860.5,3860.4,0.5504]
[1761269363622,0.90814699,3860.5,3860.4,0.3223]
[1761269365123,0.90814699,3860.5,3860.4,0.5504]
[1761269366517,0.90814699,3860.5,3860.4,0.7766]
[1761269366724,0.29701628,3860.5,3860.4,0.7766]
[1761269366922,0.96678365,3860.5,3860.4,0.7766]
[1761269368020,0.96678365,3860.5,3860.4,0.5504]
[1761269369920,1.06870164,3860.5,3860.4,0.3223]
[1761269370117,1.74013959,3860.5,3860.4,0.3223]
[1761269370418,0.96845423,3860.5,3860.4,0.7747]
[1761269372817,2.3595664,3860.5,3860.4,0.7747]
[1761269374620,0.96845423,3860.5,3860.4,0.7747]
[1761269377125,0.92738702,3860.8,3860.7,1.01923]
[1761269377318,1.39111217,3861.1,3860.9,0.4661]
[1761269377319,0.92738702,3861.1,3860.9,0.4661]
[1761269377626,0.92738702,3861.3,3861.2,0.7772]
[1761269380421,0.88951595,3861.6,3861.5,1.05033]
[1761269380723,0.00648,3862.5,3862.4,1.24312]
[1761269380928,0.8018,3863.1,3863.0,0.7772]
[1761269381524,0.8018,3863.1,3863.0,0.9091]
[1761269381722,0.80466521,3863.1,3863.0,0.91134819]
[1761269382824,0.45956521,3863.1,3863.0,0.91134819]
[1761269384921,0.80466521,3863.1,3863.0,0.91134819]
[1761269386134,0.3451,3864.3,3863.5,0.4567]
[1761269386340,0.8018,3864.3,3864.2,0.5531]
[1761269386530,0.8018,3864.3,3863.7,0.46576]
[1761269386729,0.8018,3863.9,3863.8,0.4524]
[1761269387225,0.4567,3863.9,3863.8,0.7772]
[1761269387738,0.80485422,3863.9,3863.8,0.7772]
[1761269388728,0.2289,3863.3,3863.2,0.2283]
[1761269389034,0.8018,3863.3,3863.2,0.2283]
[1761269389335,0.8018,3863.3,3863.2,0.5531]
[1761269392230,0.8018,3863.3,3863.1,0.46583]
[1761269392231,0.8018,3863.1,3863.0,0.00224819]
[1761269392431,0.8018,3863.1,3863.0,0.77944819]
[1761269392627,0.8018,3863.4,3863.1,0.3248]
[1761269392834,0.8018,3863.4,3863.3,0.5531]
[1761269393541,0.8018,3863.4,3863.1,0.46583]
[1761269393742,0.4567,3863.4,3863.1,0.46583]
[1761269394041,0.8018,3863.2,3863.1,0.46583]
[1761269396239,0.8018,3863.2,3863.1,1.01893]
[1761269396430,0.8018,3863.2,3863.0,0.00224819]
[1761269396627,0.8018,3863.1,3863.0,0.00224819]
[1761269396839,0.8018,3863.1,3863.0,0.32704819]
[1761269397041,0.8018,3863.1,3863.0,0.55534819]
[1761269399837,0.4567,3863.1,3863.0,0.91224819]
[1761269400648,0.7789,3863.1,3863.0,0.00224819]
[1761269401038,0.7789,3863.1,3863.0,0.92854819]
[1761269402061,0.7789,3863.1,3863.0,0.58014819]
[1761269402643,0.7789,3863.1,3863.0,0.00224819]
[1761269404947,0.7789,3863.1,3863.0,0.58014819]
[1761269405249,0.7789,3863.1,3863.0,0.92854819]
[1761269406245,0.4567,3863.1,3863.0,0.92854819]
[1761269407248,0.7789,3863.1,3863.0,0.92854819]
[1761269407436,1.35231443,3863.1,3863.0,0.92854819]
[1761269407638,1.35231443,3863.1,3863.0,0.23964819]
[1761269407846,1.35231443,3863.1,3863.0,0.58014819]
[1761269408049,1.35231443,3863.1,3863.0,0.00224819]
[1761269408954,1.5866331,3863.1,3863.0,0.00224819]
[1761269409254,1.33541443,3863.1,3863.0,0.79574819]
[1761269409446,1.33541443,3863.1,3863.0,0.92854819]
[1761269410349,1.57016028,3863.1,3863.0,0.92854819]
[1761269410745,0.80816028,3863.1,3863.0,0.92854819]
[1761269410944,1.02946028,3863.1,3863.0,0.92854819]
[1761269411836,1.57016028,3863.1,3863.0,0.58014819]
[1761269413743,2.34184564,3863.1,3863.0,0.00224819]
[1761269413944,0.3222,3862.3,3862.2,3.848]
[1761269414248,0.4398,3862.1,3862.0,1.05086]
[1761269414647,0.3222,3862.8,3862.2,0.3405]
[1761269414842,0.3222,3862.6,3862.2,0.34384277]
[1761269415143,0.79607099,3862.5,3862.4,0.7935]
[1761269415350,1.33677099,3862.5,3862.4,0.7935]
[1761269416755,0.57477099,3862.5,3862.4,0.7935]
[1761269416945,0.79607099,3862.5,3862.4,0.453]
[1761269417543,0.79607099,3862.5,3862.4,0.7935]
[1761269418243,1.03079543,3862.5,3862.4,0.7935]
[1761269418451,1.57149543,3862.5,3862.4,0.7935]
[1761269419052,0.762,3862.3,3862.2,0.00334277]
[1761269419254,1.33677099,3862.3,3862.2,0.00334277]
[1761269422056,1.33677099,3862.3,3862.2,0.58124277]
[1761269422257,0.57477099,3862.3,3862.2,0.79684277]
[1761269422554,0.2213,3862.6,3862.5,1.3922]
[1761269422749,0.45590456,3862.6,3862.5,1.3922]
[1761269422950,1.03057451,3862.6,3862.5,1.3922]
[1761269423254,0.762,3863.0,3862.9,0.7935]
[1761269423456,1.57143885,3863.0,3862.9,1.25936]
[1761269424457,0.57479054,3863.0,3862.9,2.03104536]
[1761269425258,0.57479054,3863.0,3862.9,1.25936]
[1761269425760,0.57479054,3863.0,3862.9,2.03104536]
[1761269425957,0.2213,3863.7,3863.6,0.7935]
[1761269426156,1.03087889,3863.7,3863.6,0.7935]
[1761269426460,1.57157889,3863.7,3863.6,0.7935]
[1761269427757,0.9319145,3863.9,3863.7,0.46576]
[1761269427758,0.35025422,3863.9,3863.7,0.46576]
[1761269427953,0.78235422,3863.9,3863.8,0.7986]
[1761269428153,1.3571672,3863.9,3863.8,0.7986]
[1761269428758,1.0099672,3863.9,3863.8,0.7986]
[1761269429164,0.7935672,3863.9,3863.8,0.7986]
[1761269429460,0.00305422,3863.9,3863.8,0.7986]